bitfinex/quotes_ETHUSD_20220305
["timestamp","ask_amount","ask_price","bid_price","bid_amount"]
[1646485075507,1.54231623,2658.5,2657.9,0.01331132]
[1646485076349,0.99765791,2658.4,2658.1,0.00298073]
[1646485076750,1.1842286,2658.7,2658.1,0.00298073]
[1646485076955,1.54228824,2658.6,2658.1,0.00298073]
[1646485077355,1.54228824,2658.6,2657.9,1.18205907]
[1646485077555,1.54228824,2658.6,2658.3,0.00298062]
[1646485077755,1.53821424,2658.6,2658.3,0.00298062]
[1646485077955,1.1048344,2658.5,2658.3,0.00298062]
[1646485078555,1.1048344,2658.5,2657.9,0.01331132]
[1646485079055,1.0972804,2658.5,2658.3,0.00288003]
[1646485079703,1.0972804,2658.5,2657.9,0.01331132]
[1646485079899,1.0932064,2658.5,2657.9,0.01331132]
[1646485080102,1.0932064,2658.5,2658.3,0.00288003]
[1646485080904,1.0932064,2658.5,2657.9,0.01331132]
[1646485081103,1.0932064,2658.5,2658.3,0.00264945]
[1646485082105,1.0932064,2658.5,2657.9,0.01331132]
[1646485082507,1.0932064,2658.5,2658.3,0.00252736]
[1646485083108,1.1842286,2658.7,2658.3,0.00252736]
[1646485083464,1.1842286,2658.7,2657.9,0.01331132]
[1646485083651,1.1842286,2658.7,2658.3,0.00252736]
[1646485083851,1.1817116,2658.7,2657.9,0.01936364]
[1646485084351,1.22506987,2658.3,2657.9,1.21353759]
[1646485084553,1.22506987,2658.3,2657.9,1.20578722]
[1646485084856,1.22506987,2658.3,2657.9,1.20342663]
[1646485085153,1.22506987,2658.3,2657.9,0.00925268]
[1646485085752,1.22099487,2658.3,2657.9,0.00925268]
[1646485086053,1.22099487,2658.3,2658.0,0.00256211]
[1646485086255,1.1817116,2658.7,2658.0,0.00256211]
[1646485086453,1.1817116,2658.7,2657.7,0.03041546]
[1646485087308,1.1817116,2658.7,2657.7,0.90774474]
[1646485087309,0.98037371,2658.2,2657.7,0.90774474]
[1646485087511,0.98037371,2658.2,2657.7,0.90538415]
[1646485088111,0.98037371,2658.2,2657.7,0.02805487]
[1646485089310,0.98037371,2658.2,2657.7,1.24107032]
[1646485089712,0.98037371,2658.2,2657.8,0.00298087]
[1646485090512,0.98037371,2658.2,2657.7,1.24107032]
[1646485090952,0.98037371,2658.2,2657.9,0.00298084]
[1646485091751,0.98037371,2658.2,2657.7,1.24343091]
[1646485091952,0.98037371,2658.2,2657.9,0.00298087]
[1646485092554,1.1817116,2658.7,2657.9,0.00298087]
[1646485092956,1.1817116,2658.7,2657.9,0.94094]
[1646485093159,1.1817116,2658.7,2658.0,0.452]
[1646485093356,1.1817116,2658.7,2658.0,3.72605828]
[1646485093656,1.1817116,2658.7,2658.5,1.02088769]
[1646485097016,1.1817116,2658.7,2658.5,1.47288769]
[1646485097821,1.1817116,2658.7,2658.5,0.452]
[1646485098024,1.1817116,2658.7,2658.1,0.45436059]
[1646485098222,1.54222093,2658.6,2658.1,0.452]
[1646485098855,0.96201903,2658.4,2658.0,1.2448]
[1646485099056,1.54235645,2658.3,2657.9,0.00236059]
[1646485099254,1.54235645,2658.3,2657.9,0.00275253]
[1646485100054,1.54235645,2658.3,2657.7,0.99956356]
[1646485100254,1.54235645,2658.3,2657.8,0.941]
[1646485100455,1.54235645,2658.3,2657.9,0.00275239]
[1646485101357,1.54235645,2658.3,2657.8,0.941]
[1646485101556,1.54235645,2658.3,2657.9,0.00276405]
[1646485102607,1.54235645,2658.3,2657.8,0.941]
[1646485102810,0.9226408,2658.0,2657.9,0.00276405]
[1646485103212,1.249,2658.6,2657.9,0.00276405]
[1646485103408,1.54234629,2658.5,2657.9,0.00512464]
[1646485103608,1.54234629,2658.4,2657.9,0.00512464]
[1646485103809,1.54234629,2658.6,2657.9,0.00236059]
[1646485104008,1.54234629,2658.5,2657.9,0.00512472]
[1646485104209,1.18023682,2658.3,2657.9,0.00512472]
[1646485104409,1.18023682,2658.3,2657.9,0.00276413]
[1646485104810,2.4148116,2658.7,2657.9,0.00276413]
[1646485105009,1.54231577,2658.6,2657.9,0.00236059]
[1646485105210,1.54231577,2658.6,2657.9,0.00512389]
[1646485106156,2.4817001,2658.6,2658.1,0.91968519]
[1646485106355,1.54231577,2658.5,2658.1,0.91968519]
[1646485106956,1.1817116,2658.7,2658.1,1.86055519]
[1646485107158,1.1817116,2658.7,2658.1,2.31255519]
[1646485107760,1.1817116,2658.7,2658.2,3.5]
[1646485108262,1.1817116,2658.7,2658.2,4.5]
[1646485108461,1.5421573,2658.6,2658.2,3.5]
[1646485108660,1.5421573,2658.6,2658.2,4.5]
[1646485108862,0.98371945,2658.5,2658.2,4.5]
[1646485110312,1.1817116,2658.7,2658.2,4.5]
[1646485110510,1.54216121,2658.6,2658.2,4.5]
[1646485110710,1.1817116,2658.7,2658.2,4.5]
[1646485110915,1.54216419,2658.6,2658.2,4.5]
[1646485111212,1.54121456,2658.6,2658.2,4.5]
[1646485111613,1.54121456,2658.6,2658.1,0.91968519]
[1646485113215,1.54121456,2658.6,2658.2,3.5]
[1646485114460,1.54121456,2658.6,2658.2,3.49860957]
[1646485114660,1.54121456,2658.6,2658.0,1.0]
[1646485114862,1.54121456,2658.6,2658.1,3.5]
[1646485115061,1.54121456,2658.6,2657.9,0.00276351]
[1646485115662,1.54121456,2658.6,2657.8,4.50236059]
[1646485115863,0.93738423,2658.1,2657.8,3.50236059]
[1646485116066,0.93738423,2658.1,2657.7,0.48005487]
[1646485116067,0.93738423,2658.1,2657.9,0.00277214]
[1646485117065,0.93738423,2658.1,2657.7,0.02805487]
[1646485117310,0.93738423,2658.1,2657.9,0.00277199]
[1646485117510,0.92922823,2658.1,2657.9,0.00277199]
[1646485118110,0.92922823,2658.1,2657.7,0.02805487]
[1646485118311,0.92922823,2658.1,2657.9,0.00277199]
[1646485119310,0.92922823,2658.1,2657.7,0.02805487]
[1646485119810,0.92922823,2658.1,2657.9,0.00277082]
[1646485120011,1.09033983,2658.7,2657.9,0.00277082]
[1646485120210,1.09033983,2658.7,2657.9,0.94374082]
[1646485120412,1.09033983,2658.7,2657.9,0.94610141]
[1646485120611,1.09033983,2658.7,2657.9,0.94333059]
[1646485120813,1.09033983,2658.7,2657.9,0.94610158]
[1646485121060,0.99033983,2658.7,2657.9,1.39810158]
[1646485121269,0.99033983,2658.7,2658.2,1.21123075]
[1646485122059,0.99033983,2658.7,2658.3,0.94081]
[1646485124710,0.99033983,2658.7,2658.2,1.21123075]
[1646485126315,0.99033983,2658.7,2657.9,1.20193179]
[1646485126521,0.99033983,2658.7,2657.9,1.19916059]
[1646485126916,0.99033983,2658.7,2657.9,1.20198345]
[1646485127321,0.99033983,2658.7,2658.0,1.2325652]
[1646485128468,0.99033983,2658.7,2657.9,1.20198339]
[1646485129061,0.99033983,2658.7,2657.9,1.19916059]
[1646485129260,0.99033983,2658.7,2657.9,1.20198336]
[1646485129460,0.92648864,2658.1,2657.9,1.20198336]
[1646485129663,0.92648864,2658.1,2657.9,1.19962277]
[1646485129858,0.92648864,2658.1,2657.9,0.00282277]
[1646485130260,0.92648864,2658.1,2657.7,1.48005487]
[1646485130461,0.92648864,2658.1,2657.9,0.002767]
[1646485131464,0.92648864,2658.1,2657.7,0.02805487]
[1646485131465,1.54250141,2658.0,2657.7,0.02805487]
[1646485131666,1.54250141,2658.0,2657.9,0.002767]
[1646485132708,1.54250141,2658.0,2657.7,0.02805487]
[1646485133112,0.68686633,2657.5,2657.4,0.51143036]
[1646485133311,5.72936774,2657.5,2657.4,0.28321873]
[1646485133510,2.22936774,2657.5,2657.4,0.28321873]
[1646485133910,2.22936774,2657.5,2657.4,0.27214896]
[1646485134318,1.02643815,2658.1,2657.5,3.0]
[1646485134519,0.3396,2658.1,2657.5,3.0]
[1646485134715,0.3396,2658.1,2657.6,3.952]
[1646485134921,0.3396,2658.1,2657.6,0.452]
[1646485135114,0.3396,2658.1,2657.6,4.952]
[1646485135314,0.3396,2658.1,2657.6,16.412]
[1646485135714,0.3396,2658.1,2657.8,13.34176]
[1646485135979,0.99033983,2658.7,2657.9,15.788]
[1646485136171,0.99033983,2658.7,2658.2,1.8812837]
[1646485136369,0.99033983,2658.7,2658.3,3.952]
[1646485136773,0.99033983,2658.7,2658.4,1.2216279]
[1646485136977,0.99033983,2658.7,2658.5,3.952]
[1646485137175,0.99033983,2658.7,2658.6,3.5]
[1646485137375,0.99033983,2658.7,2658.6,3.952]
[1646485137776,0.99332171,2658.7,2658.6,3.952]
[1646485138778,0.99033983,2658.7,2658.6,4.952]
[1646485138977,0.99033983,2658.7,2658.6,3.952]
[1646485141920,0.99033983,2658.7,2658.6,0.452]
[1646485142522,0.99033983,2658.7,2658.4,1.2216279]
[1646485143773,0.99323224,2658.7,2658.4,1.2216279]
[1646485144778,0.99033983,2658.7,2658.4,1.2216279]
[1646485144975,0.99323224,2658.7,2658.4,1.2216279]
[1646485145375,0.99323224,2658.7,2658.4,2.1623079]
[1646485145577,0.99323224,2658.7,2658.4,5.6623079]
[1646485145777,0.99033983,2658.7,2658.4,5.6623079]
[1646485146177,0.99315746,2658.7,2658.4,5.6623079]
[1646485146477,0.99315746,2658.7,2658.4,6.1143079]
[1646485146977,0.99315746,2658.7,2658.5,0.94065]
[1646485147207,0.99315746,2658.7,2658.6,3.5]
[1646485147208,0.99033983,2658.7,2658.6,3.5]
[1646485147414,0.99315746,2658.7,2658.6,3.5]
[1646485148213,0.99033983,2658.7,2658.6,3.5]
[1646485148817,0.99033983,2658.7,2658.5,0.452]
[1646485149617,0.99033983,2658.7,2658.4,1.2216279]
[1646485149618,0.99033983,2658.7,2658.4,2.2216279]
[1646485149819,0.99310889,2658.7,2658.4,1.2216279]
[1646485150719,0.99310889,2658.7,2658.1,3.952]
[1646485150720,0.99033983,2658.7,2658.1,3.952]
[1646485150962,0.99310888,2658.7,2658.1,3.952]
[1646485151566,0.99310888,2658.7,2658.1,0.452]
[1646485151770,0.99310888,2658.7,2658.0,0.5]
[1646485151967,0.99033983,2658.7,2658.2,1.22540669]
[1646485152166,0.99310879,2658.7,2658.2,1.22540669]
[1646485153168,0.99033983,2658.7,2658.0,0.5]
[1646485153367,0.99311203,2658.7,2658.0,0.5]
[1646485154371,2.77377423,2658.6,2658.0,1.47468051]
[1646485154570,1.54237433,2658.5,2658.0,1.47468051]
[1646485155418,1.54237433,2658.5,2658.0,0.5]
[1646485155919,2.70327433,2658.5,2658.0,0.5]
[1646485156117,1.54237433,2658.4,2658.0,0.5]
[1646485156618,1.08887987,2658.2,2658.0,0.5]
[1646485156820,1.54237433,2658.1,2658.0,0.5]
[1646485160969,0.87483815,2658.6,2657.7,0.0195336]
[1646485160970,0.89483299,2657.9,2657.7,0.0195336]
[1646485161269,0.89483299,2657.9,2657.7,3.51717301]
[1646485161468,0.89483299,2657.9,2657.7,3.51440016]
[1646485161669,0.89483299,2657.9,2657.7,3.51717286]
[1646485161867,0.89483299,2657.9,2657.8,1.04750154]
[1646485163119,0.89483299,2657.9,2657.8,4.54750154]
[1646485164321,0.89483299,2657.9,2657.8,1.04750154]
[1646485165122,0.89483299,2657.9,2657.7,1.01717291]
[1646485165123,0.89483299,2657.9,2657.7,0.01440016]
[1646485165324,0.89483299,2657.9,2657.7,0.01717291]
[1646485166368,0.89483299,2657.9,2657.7,0.01440016]
[1646485166567,0.89483299,2657.9,2657.8,1.06158802]
[1646485166769,0.89483299,2657.9,2657.8,4.56158802]
[1646485167167,0.89483299,2657.9,2657.8,1.06158802]
[1646485168467,0.89483299,2657.9,2657.8,4.56158802]
[1646485168868,0.89483299,2657.9,2657.7,0.01440016]
[1646485169067,0.89483299,2657.9,2657.7,0.01695394]
[1646485169915,0.89483299,2657.9,2657.7,0.90353828]
[1646485170117,0.89483299,2657.9,2657.7,0.01695391]
[1646485171117,0.89483299,2657.9,2657.6,4.68308718]
[1646485171317,0.89483299,2657.9,2657.7,0.00256089]
[1646485172220,0.89483299,2657.9,2657.6,1.18308718]
[1646485172619,0.89483299,2657.9,2657.7,0.00257532]
[1646485173481,0.89483299,2657.9,2657.6,0.0194976]
[1646485173770,1.00360319,2657.7,2657.6,0.0194976]
[1646485174373,0.89483299,2657.9,2657.6,0.0194976]
[1646485175577,1.09545173,2657.8,2657.6,0.0194976]
[1646485176179,1.09545173,2657.8,2657.6,0.02207275]
[1646485176379,0.99545173,2657.8,2657.6,0.02207275]
[1646485176578,1.54271031,2657.7,2657.6,0.02207275]
[1646485177213,1.54271031,2657.7,2657.6,0.0194976]
[1646485181464,0.89483299,2657.9,2657.6,0.0194976]
[1646485181865,0.89483299,2657.9,2657.2,5.44119]
[1646485181866,5.05412045,2657.5,2656.9,0.0190908]
[1646485182066,6.04279211,2657.4,2656.9,0.0190908]
[1646485182266,0.01268755,2657.0,2656.9,0.0190908]
[1646485182668,1.55547966,2657.0,2656.9,0.0190908]
[1646485182867,5.0,2656.9,2656.7,0.03848574]
[1646485183070,1.54279211,2656.8,2656.7,0.03848574]
[1646485183671,1.54279211,2656.8,2656.6,0.00193712]
[1646485183672,4.5,2656.7,2656.6,0.00193712]
[1646485183869,4.5,2656.7,2656.3,0.2697578]
[1646485183870,0.95498603,2656.5,2656.3,0.0197578]
[1646485184168,0.95498603,2656.5,2656.3,0.02363204]
[1646485184169,1.54279211,2656.4,2656.3,0.02363204]
[1646485185024,5.04279211,2656.4,2656.3,0.02363204]
[1646485185222,5.04279211,2656.4,2655.6,0.04838752]
[1646485185223,5.0,2656.3,2655.6,0.04838752]
[1646485185422,5.0,2656.3,2656.0,0.01549696]
[1646485185423,5.0,2656.1,2656.0,0.01549696]
[1646485185623,5.0,2656.1,2655.7,0.03959278]
[1646485185624,4.5,2656.0,2655.7,0.03959278]
[1646485185823,9.54279211,2656.0,2655.7,0.0372607]
[1646485186229,2.47326733,2656.0,2655.7,0.0372607]
[1646485186626,0.93047522,2656.0,2655.7,0.0372607]
[1646485186827,0.93047522,2656.0,2655.8,0.03302479]
[1646485187627,4.51210173,2656.2,2655.8,0.03302479]
[1646485187628,1.0,2656.2,2655.8,0.03302479]
[1646485187828,3.82639997,2656.4,2655.8,0.0300372]
[1646485187829,1.54377454,2656.1,2655.8,0.0300372]
[1646485188028,3.0,2656.3,2655.8,0.0300372]
[1646485188229,1.54377696,2656.2,2655.8,0.03287302]
[1646485188466,4.5,2656.3,2655.8,0.03287302]
[1646485188668,4.0,2656.3,2655.8,0.03287302]
[1646485188873,3.5,2656.2,2655.8,0.03287302]
[1646485189070,3.5,2656.2,2655.8,0.0300372]
[1646485189071,1.16728283,2656.0,2655.8,0.0300372]
[1646485189270,1.35548283,2656.0,2655.8,0.0300372]
[1646485190578,1.16728283,2656.0,2655.8,0.0300372]
[1646485191581,1.16320383,2656.0,2655.8,0.0300372]
[1646485191778,1.16320383,2656.0,2655.8,0.03278502]
[1646485192627,1.11320383,2656.0,2655.8,0.0300372]
[1646485193028,1.11320383,2656.0,2655.8,0.03284321]
[1646485193829,1.11320383,2656.0,2655.8,0.0300372]
[1646485194233,1.56256705,2656.2,2655.8,0.03284321]
[1646485194432,1.1882,2656.6,2655.8,0.03284321]
[1646485194631,2.9892,2656.7,2655.8,0.03284321]
[1646485195033,2.9892,2656.7,2655.8,0.0300372]
[1646485195231,1.1051907,2656.4,2655.8,1.11029326]
[1646485195434,1.1051907,2656.4,2656.2,0.00266761]
[1646485196266,1.1051907,2656.4,2655.9,0.04364352]
[1646485196466,1.1051907,2656.4,2655.9,0.04131144]
[1646485196672,1.1051907,2656.4,2656.2,0.00253609]
[1646485197466,1.1051907,2656.4,2655.9,0.04131144]
[1646485197666,1.1051907,2656.4,2656.2,0.00253609]
[1646485198468,0.1882,2656.9,2656.2,0.00253609]
[1646485198669,1.54360219,2656.8,2655.9,0.04131144]
[1646485198868,0.1882,2656.7,2655.9,0.04131144]
[1646485199069,0.1882,2656.7,2656.2,0.00254985]
[1646485199371,0.1882,2656.8,2656.2,0.00254985]
[1646485199569,1.09024573,2656.3,2656.2,0.00254985]
[1646485200023,1.09024573,2656.3,2655.9,0.04131144]
[1646485200224,1.09024573,2656.3,2656.0,0.01025426]
[1646485201226,1.09024573,2656.3,2655.9,0.04131144]
[1646485201425,1.09024573,2656.3,2656.0,0.00256334]
[1646485201623,0.55635233,2657.0,2656.0,0.00256334]
[1646485201824,1.54361358,2656.9,2656.0,0.00256334]
[1646485202027,5.04361358,2656.9,2656.0,0.00256334]
[1646485202225,1.54361358,2656.8,2656.0,0.00256334]
[1646485202424,0.85635233,2657.0,2655.9,0.04131144]
[1646485202725,0.98185028,2656.5,2656.4,0.11237572]
[1646485202925,0.22620815,2656.0,2655.9,0.05156794]
[1646485203474,0.22620815,2656.0,2655.9,0.04131144]
[1646485208923,0.1882,2656.8,2656.0,5.376]
[1646485209123,1.0,2657.4,2656.1,0.828]
[1646485209124,1.1882,2657.4,2656.1,0.828]
[1646485209323,1.1058704,2657.0,2656.4,2.10701435]
[1646485209523,1.1058704,2657.0,2656.4,2.48301435]
[1646485210336,0.1882,2657.4,2656.4,2.48301435]
[1646485210525,0.05412045,2657.5,2656.5,0.00233208]
[1646485211163,0.24212045,2657.5,2656.5,0.00233208]
[1646485211369,0.89048333,2657.2,2656.5,0.00233208]
[1646485213673,1.0683923,2656.8,2656.5,0.00233208]
[1646485213872,1.0683923,2656.8,2656.4,0.89139546]
[1646485214272,1.0683923,2656.8,2656.3,0.188]
[1646485214473,1.0683923,2656.8,2656.6,0.89139546]
[1646485215321,1.54364856,2656.7,2656.6,0.89139546]
[1646485216220,5.04364856,2656.7,2656.6,0.89139546]
[1646485216619,5.04364856,2656.7,2656.6,0.84139546]
[1646485217022,1.54364856,2656.7,2656.6,0.84139546]
[1646485217223,5.04364856,2656.7,2656.6,9.546e-05]
[1646485217423,1.54364856,2656.7,2656.6,9.546e-05]
[1646485218023,5.04364856,2656.7,2656.6,9.546e-05]
[1646485218225,1.54364856,2656.7,2656.6,9.546e-05]
[1646485218476,5.04364856,2656.7,2656.6,9.546e-05]
[1646485218666,1.54364856,2656.7,2656.6,9.546e-05]
[1646485219071,1.54364856,2656.8,2656.6,9.546e-05]
[1646485219271,1.1882,2656.9,2656.6,9.546e-05]
[1646485219272,1.54364856,2656.7,2656.6,9.546e-05]
[1646485219672,1.54364856,2656.8,2656.2,0.00299011]
[1646485219972,1.54364856,2656.7,2656.2,0.00299011]
[1646485220180,1.54364856,2656.6,2656.2,0.00299011]
[1646485220377,1.54364856,2656.5,2655.9,0.04364352]
[1646485220575,1.01823012,2656.1,2656.0,0.01196096]
[1646485221577,1.01823012,2656.1,2655.9,0.04131144]
[1646485221776,1.01823012,2656.1,2655.9,0.04430148]
[1646485222818,1.01823012,2656.1,2655.9,0.04131144]
[1646485223120,1.01823012,2656.1,2655.9,0.04275222]
[1646485223918,1.01823012,2656.1,2655.9,0.04131144]
[1646485224119,1.01823012,2656.1,2655.9,0.04421465]
[1646485224918,1.5437419,2656.0,2655.9,0.04421465]
[1646485225120,1.5437419,2656.0,2655.9,0.04131144]
[1646485225320,1.5437419,2656.0,2655.9,0.04421465]
[1646485226364,1.5437419,2656.0,2655.9,0.04131144]
[1646485228372,1.01823012,2656.1,2655.9,0.04131144]
[1646485228770,1.54366488,2656.0,2655.9,0.04131144]
[1646485230714,1.01823012,2656.1,2655.9,0.04131144]
[1646485230918,1.01823012,2656.1,2655.8,0.21233707]
[1646485231115,1.01823012,2656.1,2655.8,0.20954864]
[1646485231318,0.68683815,2656.7,2655.8,0.20954864]
[1646485231514,0.68683815,2656.7,2655.9,0.00233208]
[1646485231515,2.23050241,2656.7,2655.9,0.00233208]
[1646485232521,2.23050241,2656.7,2656.2,0.00278259]
[1646485232720,0.00543967,2656.1,2655.9,0.00233208]
[1646485232919,0.00543967,2656.1,2655.8,0.22068067]
[1646485233573,0.00543967,2656.1,2655.8,0.20954864]
[1646485234671,1.49367399,2656.0,2655.8,0.20954864]
[1646485236176,1.49367399,2656.0,2655.8,0.21254161]
[1646485236775,1.49367399,2656.0,2655.5,0.05052191]
[1646485237077,1.49367399,2656.0,2655.5,0.00233208]
[1646485237318,1.49367399,2656.0,2655.4,1.20626188]
[1646485240020,1.0319032,2655.9,2655.4,1.20626188]
[1646485240419,1.0319032,2655.9,2655.4,0.03376188]
[1646485241066,1.0319032,2655.9,2655.5,0.0029931]
[1646485241865,1.0319032,2655.9,2655.4,0.03376188]
[1646485242268,1.0319032,2655.9,2655.6,0.00299308]
[1646485243269,1.0319032,2655.9,2655.4,0.03376188]
[1646485243468,1.0319032,2655.9,2655.6,0.00299305]
[1646485244467,1.0319032,2655.9,2655.4,0.03376188]
[1646485244716,1.71874135,2655.9,2655.6,0.00299305]
[1646485244915,1.0319032,2655.9,2655.6,0.00299305]
[1646485245517,1.0319032,2655.9,2655.4,0.03376188]
[1646485245720,1.0319032,2655.9,2655.6,0.00289485]
[1646485245918,4.5319032,2655.9,2655.6,0.00289485]
[1646485246116,5.21874135,2655.9,2655.6,0.00289485]
[1646485246315,5.5319032,2655.9,2655.6,0.00289485]
[1646485246724,5.5319032,2655.9,2655.4,0.03376188]
[1646485246920,2.0319032,2655.9,2655.6,0.00289485]
[1646485247320,1.0319032,2655.9,2655.6,0.00289485]
[1646485247923,1.0319032,2655.9,2655.4,0.03376188]
[1646485248323,1.0319032,2655.9,2655.6,0.00289485]
[1646485249166,1.0319032,2655.9,2655.4,0.03376188]
[1646485249369,1.0319032,2655.9,2655.6,0.00277891]
[1646485250167,2.0,2655.8,2655.3,0.04729251]
[1646485250366,2.0,2655.8,2655.3,0.05336979]
[1646485250570,2.0,2655.8,2655.6,0.00277891]
[1646485251367,1.997514,2655.8,2655.6,0.00277891]
[1646485251567,1.997514,2655.8,2655.4,0.00840936]
[1646485253020,1.997514,2655.8,2655.5,0.0027867]
[1646485253220,2.0319032,2655.9,2655.4,0.00283596]
[1646485253221,3.0,2655.7,2655.4,0.00283596]
[1646485254222,3.5,2655.6,2655.4,0.00283596]
[1646485254423,5.0,2655.5,2655.4,1.872e-05]
[1646485254626,8.5,2655.5,2655.4,1.872e-05]
[1646485254824,11.04435955,2655.5,2655.4,1.872e-05]
[1646485255022,11.7311977,2655.5,2655.4,1.872e-05]
[1646485255222,12.7802098,2655.5,2655.4,1.872e-05]
[1646485255423,8.59337165,2655.5,2655.4,1.872e-05]
[1646485256506,12.09337165,2655.5,2655.4,1.872e-05]
[1646485256705,12.7802098,2655.5,2655.4,1.872e-05]
[1646485257105,12.78229019,2655.5,2655.4,1.872e-05]
[1646485257908,12.09337165,2655.5,2655.4,1.872e-05]
[1646485258308,8.59337165,2655.5,2655.4,1.872e-05]
[1646485258910,12.09337165,2655.5,2655.4,1.872e-05]
[1646485259109,12.08929665,2655.5,2655.4,1.872e-05]
[1646485259308,12.77789362,2655.5,2655.4,1.872e-05]
[1646485259510,12.08929665,2655.5,2655.4,1.872e-05]
[1646485259718,14.34294177,2655.5,2655.4,1.872e-05]
[1646485259922,12.08929665,2655.5,2655.4,1.872e-05]
[1646485260219,8.58929665,2655.5,2655.3,0.00137666]
[1646485260420,2.23295445,2655.4,2655.3,0.00137666]
[1646485260921,1.54435955,2655.4,2655.3,0.00137666]
[1646485261124,5.0,2655.3,2654.9,0.31008134]
[1646485261324,5.04435955,2655.2,2654.9,0.32610206]
[1646485261525,1.54435955,2655.1,2654.9,0.07610206]
[1646485261723,1.54435955,2655.0,2654.9,0.07610206]
[1646485261923,1.12550682,2655.1,2654.9,0.07610206]
[1646485262828,1.12550682,2655.1,2654.9,0.07900838]
[1646485263026,1.12550682,2655.1,2654.9,0.02900838]
[1646485263671,1.12550682,2655.1,2654.9,0.02610206]
[1646485263875,1.12550682,2655.1,2654.9,0.02900838]
[1646485264871,0.1882,2655.5,2654.9,0.02610206]
[1646485265074,0.1882,2655.5,2654.9,0.02900838]
[1646485265772,1.20725261,2655.5,2655.0,1.08976334]
[1646485266173,1.20725261,2655.5,2655.1,0.00277331]
[1646485266372,1.20725261,2655.5,2655.1,0.02112611]
[1646485267216,1.20725261,2655.5,2655.1,0.0183528]
[1646485267421,1.20725261,2655.5,2655.2,0.00277327]
[1646485268323,1.20584161,2655.5,2655.2,0.0183528]
[1646485268720,1.20584161,2655.5,2655.2,0.02112605]
[1646485269021,1.89443651,2655.5,2655.2,0.02112605]
[1646485269222,1.20584161,2655.5,2655.2,0.02112605]
[1646485269621,1.20584161,2655.5,2655.2,0.0183528]
[1646485269822,1.20584161,2655.5,2655.2,0.02113501]
[1646485270825,1.20584161,2655.5,2655.2,0.0183528]
[1646485271069,1.20584161,2655.5,2655.2,0.02105273]
[1646485271964,1.20584161,2655.5,2655.2,0.0183528]
[1646485272372,1.20584161,2655.5,2655.2,0.02105273]
[1646485272572,0.1882,2655.7,2655.2,0.02105273]
[1646485273171,0.1882,2655.7,2655.2,0.0183528]
[1646485273370,3.33613967,2656.1,2655.2,0.0183528]
[1646485273571,3.14793967,2656.1,2655.3,0.00270205]
[1646485273771,1.02813533,2655.9,2655.3,0.97422978]
[1646485273972,1.02813533,2655.9,2655.3,0.97656186]
[1646485274171,1.02813533,2655.9,2655.3,0.97422978]
[1646485274371,1.02813533,2655.9,2655.3,0.97152773]
[1646485274822,1.02813533,2655.9,2655.4,0.0025622]
[1646485275622,1.02813533,2655.9,2655.3,0.97152773]
[1646485275823,1.02813533,2655.9,2655.4,0.00256223]
[1646485276624,0.00512445,2655.3,2655.2,0.0183528]
[1646485279473,0.00512445,2655.3,2655.2,0.8463528]
[1646485280075,0.00512445,2655.3,2655.2,2.0926528]
[1646485280677,0.00512445,2655.3,2655.2,4.99668763]
[1646485281075,0.00512445,2655.3,2655.2,2.0926528]
[1646485290915,0.00512445,2655.3,2655.2,1.7166528]
[1646485291516,0.00512445,2655.3,2655.2,1.2646528]
[1646485294669,0.00104345,2655.3,2655.2,1.2646528]
[1646485296773,0.00104345,2655.3,2655.2,0.4703528]
[1646485297073,0.00104345,2655.3,2655.2,1.7136528]
[1646485297320,0.00104345,2655.3,2655.2,13.5496528]
[1646485297722,0.00104345,2655.3,2655.2,2.0896528]
[1646485298322,0.00104345,2655.3,2655.2,5.09954446]
[1646485298723,0.00104345,2655.3,2655.2,17.55954446]
[1646485300125,0.00104345,2655.3,2655.2,5.72354446]
[1646485300325,0.00104345,2655.3,2655.2,17.55954446]
[1646485301576,0.00104345,2655.3,2655.2,6.09954446]
[1646485301971,0.00104345,2655.3,2655.2,5.72354446]
[1646485302771,0.00104345,2655.3,2655.2,4.72354446]
[1646485307823,0.00104345,2655.3,2655.2,5.72354446]
[1646485308869,1.54203975,2656.0,2655.6,1.0430431]
[1646485310474,1.54203975,2656.0,2655.4,1.39383]
[1646485311675,1.10656442,2655.9,2655.4,2.32867171]
[1646485312326,1.10656442,2655.9,2655.4,1.38684171]
[1646485312924,1.10656442,2655.9,2655.4,0.452]
[1646485313825,1.10656442,2655.9,2655.3,2.98537318]
[1646485314027,0.00543967,2656.1,2655.3,2.98278387]
[1646485314426,0.00543967,2656.1,2655.3,2.98537316]
[1646485315325,1.01806977,2655.8,2655.3,2.98278387]
[1646485315524,1.01806977,2655.8,2655.3,2.98537319]
[1646485315970,1.01806977,2655.8,2655.4,2.98858375]
[1646485316674,1.01806977,2655.8,2655.3,4.24509621]
[1646485316872,1.01806977,2655.8,2655.3,4.24768547]
[1646485317076,1.01806977,2655.8,2655.4,6.49821374]
[1646485317678,0.00543967,2656.1,2655.4,6.49821374]
[1646485317877,0.00543967,2656.1,2655.4,7.44002374]
[1646485318178,0.00543967,2656.1,2655.4,7.89202374]
[1646485318879,0.00543967,2656.1,2655.7,1.09139038]
[1646485320335,0.00543967,2656.1,2655.4,7.89202374]
[1646485320835,0.00543967,2656.1,2655.4,8.89202374]
[1646485321035,0.00543967,2656.1,2655.4,6.95021374]
[1646485321235,0.69403457,2656.1,2655.4,2.99821374]
[1646485321435,1.08103509,2655.5,2655.4,2.99821374]
[1646485324311,0.6885949,2655.8,2655.4,2.99821374]
[1646485324510,0.6885949,2655.9,2655.4,2.99821374]
[1646485324913,0.6857199,2655.9,2655.4,2.99821374]
[1646485325111,0.00543967,2656.1,2655.4,2.99821374]
[1646485325112,0.6857199,2656.0,2655.4,2.99821374]
[1646485325410,0.00543967,2656.1,2655.4,2.99821374]
[1646485325411,0.94046916,2655.6,2655.4,2.99821374]
[1646485326811,0.93759516,2655.6,2655.4,2.99821374]
[1646485327830,0.93759516,2655.6,2655.3,0.00299638]
[1646485328430,3.5,2655.5,2655.2,0.0183528]
[1646485328830,1.544376,2655.4,2655.3,0.00299626]
[1646485329029,2.0,2655.3,2654.7,0.04148337]
[1646485329230,5.044376,2655.2,2654.7,0.04148337]
[1646485329432,1.544376,2655.1,2654.7,0.04148337]
[1646485329630,1.544376,2655.1,2654.7,0.0294959]
[1646485330231,1.16960012,2655.0,2654.7,0.0294959]
[1646485330631,1.544376,2654.9,2654.7,0.0294959]
[1646485332278,1.544376,2654.9,2654.7,0.03249517]
[1646485334479,1.544376,2654.9,2654.7,0.0294959]
[1646485334739,1.544376,2654.9,2654.7,0.03249517]
[1646485335733,1.544376,2654.9,2654.7,0.0294959]
[1646485335934,1.544376,2654.9,2654.7,0.03249517]
[1646485336935,1.544376,2654.9,2654.7,0.0294959]
[1646485337135,5.044376,2654.9,2654.7,0.03239395]
[1646485337336,5.044376,2654.8,2654.7,0.03239395]
[1646485337737,1.544376,2654.8,2654.7,0.03239395]
[1646485338143,1.544376,2654.8,2654.7,0.0294959]